Cogmind - Beta 14 @@@ ROGUE MODE // 2024.09.24 @ 17:25:02 Player: youngster Result: Destroyed by as-44684 with Assembled Heavy Rifle Performance ------------- Evolutions (0) 0 Regions Visited (3) 600 Robots Destroyed (42) 210 Value Destroyed (661) 661 Prototype IDs (32) 640 Alien Tech Used (0) 0 Bonus (-1155) -1155 TOTAL SCORE: 956 Bonus ------- Aligned with FarCom 300 Friendly Fire -1455 Cogmind --------- Core Integrity 0/250 Matter 260/300 Energy 100/100 System Corruption 0% Temperature Cool (0) Movement Treading (240) Ox1 Location -10/Exiles Parts ------- > --- POWER (1) -------- (None) > --- PROPULSION (2) --- Light Treads Light Treads > --- UTILITY (2) ------ Huge Storage Unit > --- WEAPON (2) ------- (None) > --- INVENTORY (25) --- Nuclear Core Reinforced Deuterium Engine Light Fission Core Light Treads Light Treads Light Treads Wheel Compact Wheel Large Matter Pod (150) Structural Scanner Experimental Sensor Array Improved Terrain Scanner Seismic Detector Modified TNC Hacking Suite Chronowheel Grenade Launcher Grenade Launcher Datajack Mining Laser EMP Trap EMP Trap EMP Trap Peak State ------------ > --- POWER ------------ Ion Engine > --- PROPULSION ------- Light Treads Compact Wheel > --- UTILITY ---------- Huge Storage Unit Seismic Detector > --- WEAPON ----------- Light Assault Rifle Datajack > --- INVENTORY -------- Nuclear Core Reinforced Deuterium Engine Light Fission Core Light Treads Light Treads Light Treads Light Treads Light Treads Wheel Large Matter Pod Structural Scanner Experimental Sensor Array Improved Terrain Scanner Modified TNC Propulsion Shielding Hacking Suite Chronowheel Grenade Launcher Grenade Launcher Grenade Launcher Mining Laser Hammer EMP Trap EMP Trap EMP Trap [Rating: 13] Favorites ----------- Power Ion Engine Engine Ion Engine Propulsion Light Treads Treads Light Treads Wheel Compact Wheel Utility Huge Storage Unit Device Seismic Detector Storage Huge Storage Unit Protection Light Armor Plating Weapon Light Assault Rifle Energy Gun EM Pulse Gun Ballistic Gun Light Assault Rifle Launcher Grenade Launcher Impact Weapon Hammer Special Melee Weapon Datajack Build | -11 -10 -10 -10 ------- Run | Yrd Mat Min Exi Slots Evolved . | . . . . Power . | . . . . Propulsion . | . . . . Utility . | . . . . Weapon . | . . . . Parts Attached 47 | 8 21 12 6 Power 2 | 1 1 . . Engine 2 | 1 1 . . Core . | . . . . Reactor . | . . . . Propulsion 6 | 2 2 . 2 Treads 5 | 2 1 . 2 Leg . | . . . . Wheel 1 | . 1 . . Hover . | . . . . Flight . | . . . . Utility 14 | 3 6 4 1 Device 7 | 1 4 2 . Storage 3 | 2 1 . . Processor . | . . . . Hackware . | . . . . Protection 4 | . 1 2 1 Artifact . | . . . . Weapon 25 | 2 12 8 3 Energy Gun 8 | 1 4 3 . Energy Cannon . | . . . . Ballistic Gun 4 | 1 2 1 . Ballistic Cannon . | . . . . Launcher 10 | . 6 3 1 Special Weapon . | . . . . Impact Weapon 2 | . . 1 1 Slashing Weapon . | . . . . Piercing Weapon . | . . . . Special Melee Weapon 1 | . . . 1 Unidentified Prototypes . | . . . . Parts Lost 10 | . 2 2 6 Power 2 | . 1 . 1 Propulsion 1 | . . . 1 Utility 2 | . . 1 1 Weapon 5 | . 1 1 3 Highest Loss Streak 6 | . 2 2 6 To Critical Strikes . | . . . . Average Slot Usage (%) 99 | . 99 99 99 Engine 13 | . 13 14 13 Treads 16 | . 19 14 14 Wheel 11 | . 8 14 13 Device 9 | . 5 12 13 Storage 14 | . 14 14 14 Protection 4 | . 8 1 . Energy Gun 5 | . 9 2 . Ballistic Gun 12 | . 10 13 13 Launcher 5 | . 8 3 . Impact Weapon 3 | . . 7 2 Special Melee Weapon 1 | . . . 11 Peak Build Rating 13 | 7 9 9 13 Average Rating 8 | 5 7 8 11 On Entrance 6 | . 7 8 9 Naked Turns . | . . . . Heaviest Build 94 | 14 94 92 89 Greatest Support 40 | 40 40 16 40 Greatest Overweight (x) 5 | . 5 5 5 Average Overweight (x) 3 | . 2 5 4 Largest Inventory Capacity 25 | 8 25 25 25 Average Capacity 21 | 7 18 25 25 Most Carried 25 | 5 14 19 25 Average Carried 13 | 2 8 17 23 Final Capacity 25 | 8 25 25 25 Final Carried 23 | 5 14 18 23 Class Distribution -------------------- 100% | Mutant Dominant Class ---------------- Mutant | -10/Materials Mutant | -10/Mines Mutant | -10/Exiles Resources | -11 -10 -10 -10 ----------- Run | Yrd Mat Min Exi Matter Collected 992 | 300 429 246 17 Remotely . | . . . . Salvage Created 1097 | 161 589 327 20 Parts 82 | 17 45 16 4 Haulers Intercepted 2 | . 2 . . Recyclers Shooed 4 | . 3 1 . Parts Field Recycled . | . . . . Retrieved Matter . | . . . . Parts Self-Destructed . | . . . . Prevented . | . . . . Kills | -11 -10 -10 -10 ------- Run | Yrd Mat Min Exi Combat Hostiles Destroyed 24 | . 16 7 1 Guns 9 | . 8 1 . AOE 14 | . 8 5 1 Classes Destroyed 10 | 3 5 . 2 Worker 4 | 1 1 2 . Builder 1 | . 1 . . Tunneler 5 | 5 . . . Hauler 2 | . 2 . . Recycler 2 | 1 . 1 . Operator 1 | . . . 1 Watcher 3 | . 3 . . Swarmer 12 | . 9 3 . Grunt 11 | . 7 4 . Assembled 1 | . . . 1 Best Kill Streak 5 | 2 5 4 1 Combat Bots Only 5 | . 5 3 1 Max Kills in Single Turn 3 | 1 3 3 1 Gunslinging . | . . . . Exploded 3 | . 3 2 1 Melee . | . . . . Uniques/NPCs Destroyed 1 | . . 1 . YI-UF0 (-10/Mines) Combat | -11 -10 -10 -10 -------- Run | Yrd Mat Min Exi Hostile Shots Fired 150 | . 58 35 57 Missed 43 | . 17 8 18 Damage Taken 1517 | 26 470 341 680 Core 252 | . 68 40 144 Absorbed by Shields . | . . . . Redirected to Shielding 34 | . . 3 31 Core Remaining (%) 100 | 100 . . . Volleys Fired 117 | 20 58 30 9 Largest 2 | 2 2 2 1 Hottest 60 | 60 60 60 30 Shots Fired 204 | 40 108 47 9 Gun 187 | 40 103 37 7 Cannon . | . . . . Launcher 17 | . 5 10 2 Special . | . . . . Kinetic 101 | 20 52 22 7 Thermal . | . . . . Explosive 17 | . 5 10 2 Electromagnetic 86 | 20 51 15 . Robot Hit Streak 21 | 5 17 21 4 Robot Miss Streak 6 | 4 6 4 1 Penetration Max . | . . . . Secondary Targets 1 | . 1 . . Max Gunslinging Chain 1 | . 1 . . Shots Hit Robots 137 | 24 63 36 14 Core Hits 76 | 11 37 22 6 Critical Kills . | . . . . Critical Parts Destroyed 5 | . . 3 2 Critical Strikes 5 | . . 3 2 Destroy 1 | . . 1 . Smash 4 | . . 2 2 Melee Attacks 14 | . . 6 8 Impact 12 | . . 6 6 Slashing . | . . . . Piercing . | . . . . Sneak Attacks 6 | . . 3 3 Combat Hostiles . | . . . . Follow-up Attacks . | . . . . Damage Inflicted 3303 | 385 1341 1256 321 Guns 1306 | 265 735 262 44 Cannons . | . . . . Explosions 1611 | 120 598 767 126 Melee 378 | . . 227 151 Ramming 8 | . 8 . . Kinetic 536 | 116 260 116 44 Thermal 376 | 120 204 52 . Explosive 1235 | . 394 715 126 Electromagnetic 770 | 149 475 146 . Impact 378 | . . 227 151 Slashing . | . . . . Piercing . | . . . . Highest Corruption . | . . . . Average Corruption . | . . . . Corruption Purged . | . . . . Corruption Blocked . | . . . . Overload Shots . | . . . . Overflow Damage 239 | 5 56 74 104 Projectiles . | . . . . Explosions 108 | 5 56 16 31 Melee 131 | . . 58 73 Knockbacks 3 | . . 2 1 Impact 3 | . . 2 1 Kinetic . | . . . . Secondary . | . . . . Self-Inflicted Damage 191 | 27 55 29 80 Shots 7 | 1 2 2 2 Rammed 3 | . 3 . . Targets Rammed 3 | . 3 . . Kicked . | . . . . Crushed . | . . . . Highest Temperature 183 | 40 183 60 10 Average Temperature 33 | 21 39 28 10 Received Heat Transfer 414 | . 153 201 60 Siege Activations . | . . . . Robots Corrupted 3 | . . 3 . Combat Hostiles 1 | . . 1 . Parts Fried 3 | . 1 2 . Impact Corruptions 7 | . . 4 3 Robots Melted . | . . . . Combat Hostiles . | . . . . Parts Melted . | . . . . Heat Transferred 400 | 150 200 50 . Parts Sabotaged . | . . . . Parts Stolen . | . . . . Parts Stripped . | . . . . Power Chain Reactions 6 | 2 3 1 . Alert | -11 -10 -10 -10 ------- Run | Yrd Mat Min Exi Peak Influence 284 | 35 284 127 . Initial 39 | . 22 39 . Average 99 | 14 161 46 . Maximum Alert Level 1 | . 1 . . Low Security (%) 86 | 100 72 100 . Level 1 13 | . 27 . . Level 2 . | . . . . Level 3 . | . . . . Level 4 . | . . . . Level 5 . | . . . . High Security . | . . . . Max Security . | . . . . Squads Dispatched 1 | . 1 . . Investigation 1 | . 1 . . Extermination . | . . . . Reinforcement . | . . . . Assault . | . . . . Garrison . | . . . . Intercept . | . . . . Searches Triggered . | . . . . Construction Impeded . | . . . . Haulers Reinforced . | . . . . Active Scanning Responses . | . . . . Cargo Convoy Interrupts . | . . . . Stealth | -11 -10 -10 -10 --------- Run | Yrd Mat Min Exi Distress Signals 3 | . 3 . . Communications Jammed . | . . . . Distress Signals . | . . . . Times Spotted 44 | . 30 7 7 Peak Tracking Total 9 | . 4 3 9 Tactical Retreats 2 | . 1 1 . Traps | -11 -10 -10 -10 ------- Run | Yrd Mat Min Exi Traps Triggered 1 | . 1 . . Indirectly . | . . . . Trap Hack Attempts . | . . . . Triggered . | . . . . Disarmed . | . . . . Reprogrammed . | . . . . Reused . | . . . . Traps Extracted . | . . . . Installed . | . . . . Triggered . | . . . . Most Traps Carried 3 | . . 3 3 Machines | -11 -10 -10 -10 ---------- Run | Yrd Mat Min Exi Machines Disabled 4 | . 1 1 2 Max in Single Turn 1 | . 1 1 1 Machines Repaired . | . . . . Machines Dismantled . | . . . . Machines Sabotaged . | . . . . Overloaded Fab Kills . | . . . . Hacking | -11 -10 -10 -10 --------- Run | Yrd Mat Min Exi Machines Accessed 10 | . 8 . 2 Terminals 7 | . 7 . . Fabricators . | . . . . Repair Stations 1 | . 1 . . Recycling Units . | . . . . Scanalyzers . | . . . . Garrison Access . | . . . . Total Hacks 36 | . 27 . 9 Successful 22 | . 13 . 9 Failed 14 | . 14 . . Catastrophic 3 | . 3 . . Database Lockouts . | . . . . Manual 22 | . 21 . 1 Terminals 25 | . 25 . . Fabricators . | . . . . Repair Stations 2 | . 2 . . Recycling Units . | . . . . Scanalyzers . | . . . . Garrison Access . | . . . . Terminal Hacks 14 | . 5 . 9 Record 8 | . . . 8 Part Schematic 1 | . 1 . . Robot Schematic 1 | . 1 . . Terminal Index 1 | . 1 . . Locate Traps 2 | . 2 . . Derelict Proto ID Bank 1 | . . . 1 Fabricator Hacks . | . . . . Repair Station Hacks 1 | . 1 . . Scan Component 1 | . 1 . . Recycling Unit Hacks . | . . . . Scanalyzer . | . . . . Garrison Access Hacks . | . . . . Unauthorized Hacks 7 | . 7 . . Terminals 7 | . 7 . . Assimilate 1 | . 1 . . Operators 1 | . 1 . . Skim 5 | . 5 . . Fabricators . | . . . . Repair Stations . | . . . . Recycling Units . | . . . . Scanalyzers . | . . . . Garrison Access . | . . . . Data Cores Recovered . | . . . . Used . | . . . . Hacking Detections 8 | . 8 . . Full Trace Events 1 | . 1 . . Feedback Events . | . . . . Feedback Blocked . | . . . . Robot Schematics Acquired 1 | . 1 . . Robots Built . | . . . . Authchips . | . . . . Time . | . . . . Total Robot Build Rating . | . . . . Part Schematics Acquired 1 | . 1 . . Parts Built . | . . . . Authchips . | . . . . Time . | . . . . Total Part Build Rating . | . . . . Parts Repaired . | . . . . Time . | . . . . Parts Recycled . | . . . . Recycled Matter . | . . . . Retrieved Matter . | . . . . Retrieved Components . | . . . . Parts Scanalyzed . | . . . . Part Schematics Acquired . | . . . . Parts Damaged . | . . . . Bothacking | -11 -10 -10 -10 ------------ Run | Yrd Mat Min Exi Used RIF Installer . | . . . . Robots Hacked 2 | . . . 2 Non-combat 1 | . . . 1 Combat 1 | . . . 1 Robot Hacks Applied 2 | . . . 2 parse_system 2 | . . . 2 Relay Couplers Released . | . . . . Fabnet Peak Effective % . | . . . . Robots Rewired . | . . . . Allies Hacked . | . . . . Hacks Repelled . | . . . . Allies | -11 -10 -10 -10 -------- Run | Yrd Mat Min Exi Total Allies 1 | . 1 . . Largest Group 1 | . 1 1 1 Highest-Rated Group 10 | . 10 10 10 Highest-Rated Ally 10 | . 10 10 10 Total Orders 5 | . . 4 1 STAY 3 | . . 2 1 FOLLOW 2 | . . 2 . Ally Attacks . | . . . . Total Damage . | . . . . Kills . | . . . . Allies Corrupted . | . . . . Allies Melted . | . . . . Intel | -11 -10 -10 -10 ------- Run | Yrd Mat Min Exi Robot Analysis Total . | . . . . Derelict Logs Recovered 1 | . . 1 . Drone Launches . | . . . . Drone Recoveries . | . . . . Exploration | -11 -10 -10 -10 ------------- Run | Yrd Mat Min Exi Turns Passed 4283 | 238 1818 1738 489 Spaces Moved 2050 | 104 805 892 249 Core 3 | 3 . . . Treads 464 | 101 362 . 1 Legs . | . . . . Wheels 1583 | . 443 892 248 Hover . | . . . . Flight . | . . . . Fastest Speed 50 | 50 160 175 175 Average Speed 171 | 156 168 175 175 Slowest Speed 240 | 160 175 175 240 Overloaded Moves . | . . . . Propulsion Burnouts . | . . . . Robots Hopped . | . . . . Cave-ins Triggered . | . . . . Exploration Rate (%) 63 | 5 100 98 50 Regions Visited 3 Branch Regions 2 Pre-discovered Areas 1 | . . . 1 Known Exits Taken . | . . . . Unknown Exits Taken 3 | 1 1 1 . Scrap Searched 1 | . . 1 . Spaces Dug 49 | . 23 26 . Terrain Destroyed 137 | 5 38 78 16 Melee . | . . . . Projectile . | . . . . AOE 137 | 5 38 78 16 Terrain Rammed . | . . . . Walls Destroyed . | . . . . Machines Disabled . | . . . . Actions | -11 -10 -10 -10 --------- Run | Yrd Mat Min Exi Total 2593 | 140 1161 1011 281 Wait 332 | 1 263 66 2 Move 2047 | 103 804 891 249 Hop . | . . . . Pick Up 28 | 6 10 6 6 Fast Attach 10 | 8 1 . 1 Attach 5 | . 1 2 2 Detach 1 | . . . 1 Swap 32 | . 19 10 3 Drop 4 | 2 2 . . Fire 117 | 20 58 30 9 Melee 14 | . . 6 8 Ram . | . . . . Kick . | . . . . Crush 3 | . 3 . . Escape Stasis . | . . . . Rewire . | . . . . Trap . | . . . . Miscellaneous . | . . . . Route ------- -11/Scrapyard -10/Materials (discovered 5 exits: [*Mat x3] / [*Min] / [*Sub]) -10/Mines (discovered 3 exits: [*Mat x2] / *Exi) -10/Exiles History --------- Turn | Location | Event 11 | -11/Scrapyard | Discovered new exit (range 16) 239 | -11/Scrapyard | Entered Materials 318 | -10/Materials | Build established: Mutant 760 | -10/Materials | Discovered new exit (range 7) 804 | -10/Materials | Discovered new exit (range 12) 1250 | -10/Materials | Discovered new exit (range 10) 1429 | -10/Materials | Discovered new exit (range 11) 1872 | -10/Materials | Discovered new exit (range 8) 2057 | -10/Materials | Entered Mines 2057 | -10/Mines | Accompanied by 1 ally 2064 | -10/Mines | Discovered new exit (range 6) 2140 | -10/Mines | Learned 8 Materials zone layouts 2174 | -10/Mines | Found a hidden stash of uninstalled traps 2304 | -10/Mines | Found a damaged Exp. Sensor Array with a note attached 2308 | -10/Mines | Found Prototype Device 2473 | -10/Mines | Deemed a non-threat by the Exiles lab entrance 2473 | -10/Mines | Discovered new exit (range 5) 2546 | -10/Mines | YI-UF0 nonchalantly dropped a Grenade Launcher on the ground 2592 | -10/Mines | Murdered YI-UF0 2761 | -10/Mines | Discovered new exit (range 8) 3795 | -10/Mines | Entered Exiles 3795 | -10/Exiles | Accompanied by 1 ally 3886 | -10/Exiles | Met 8R-AWN 3916 | -10/Exiles | Met EX-HEX 3985 | -10/Exiles | Met EX-DEC 3996 | -10/Exiles | Learned location of Zion (-6) 4026 | -10/Exiles | Met EX-BIN 4050 | -10/Exiles | Aligned with FarCom system 4052 | -10/Exiles | Given EX-Vault access code 4092 | -10/Exiles | Opened EX-Vault 4103 | -10/Exiles | Found Chronowheel 4112 | -10/Exiles | Found Modified TNC 4147 | -10/Exiles | Warned to stay clear of 0b10 Research branches 4261 | -10/Exiles | Attacked by the Exiles 4264 | -10/Exiles | Core integrity fell below 50% 4275 | -10/Exiles | Core integrity fell below 20% 4284 | -10/Exiles | Destroyed by as-44684 with Assembled Heavy Rifle Last Messages --------------- 04274_ HV Slug penetrates Earth. 04274_ 8R-AWN suffers critical hit (Smash). 04274_ Destroyed 8R-AWN's Boregun. 04274_ 8R-AWN system corrupted by crushing effect. 04276_ Penetrated by HV Slug. 04276_ HV Slug penetrates Earth. 04278_ HV Slug penetrates Wall. 04278_ Machine disabled. 04279_ Penetrated by HV Slug. 04279_ HV Slug penetrates Earth. 04280_ as-66454 destroyed. 04280_ Grenade Launcher destroyed. 04280_ Destroyed Grenade Launcher. 04280_ Hammer destroyed. 04280_ Destroyed Hammer. 04280_ Destroyed Asb. F-torch. 04281_ HV Slug penetrates Wall. 04282_ as-62248 destroyed. 04282_ Penetrated by HV Slug. Map ----- +----------------------------------------------------+ | """#?????????????????????????????????????????????? | | """#?????????????????????????????????????????????? | | """#?????????????????????????????????????????????? | | """#?????????????????????????????????????????????? | | """#?????????????????????????????????????????????? | | """#?????????????????????????????????????????????? | | """#?????????????????????????????????????????????? | | """#?????????????????????????????????????????????? | | """#?????????????????????????????????????????????? | | """"?????????????????????????????????????????????? | | """#?????????????????????????????????????????????? | | """"?????????????????????????????????????????????? | | #?????????????????????????????????????????????? | | """#?????????????????????????????????????????????? | | ####?????????????????????????????????????????????? | | ?????????????????????????????????????????????????? | | ?????????????????????????????????????????????????? | | ?????????????????????????????????????????????????? | | ##########???????????????????????????????????? ?? | | """""""""##??????????????????????????????????? | | " """ """"##?????????????????????????????????# # | | "" " #???????????????????????????????## # | | " """#??????????########?????????????# | | " "#?????????## #?????????????# | | " "##????????# g ###??????????## | | ""###??????# @ #?????????## #? | | """#??????# ##?????????# #? | | "#????### ##????????### #?? | | ##???# ########## #?? | | ##?## %% #""""## #??? | | ### ##?? | | a ## #?? | | #### ##? | | ""#?#""" "##;# = ## | | a #"""##?#######?#;### *% | | ######???????????# ?##### | | a ##?????????????????? ????### | | " ##???????????????????? ?????### | | """ ""#?????????????????????????????### | | ""#" "##??????????????????????????????#" | | """##"""""""##???????????????????????????????#### | | "????#########???????????????????????????????????# | | ?????????????????????????????????????????????????# | | ?????????????????????????????????????????????????? | | ?????????????????????????????????????????????????? | | ?????????????????????????????????????????????????? | | ?????????????????????????????????????????????????? | | ?????????????????????????????????????????????????? | | ?????????????????????????????????????????????????? | | ?????????????????????????????????????????????????? | +----------------------------------------------------+ Best States ------------- Heat Dissipation 25 Energy Generation 10 Energy Capacity 250 Matter Stores 300 Matter Capacity 300 Sight Range 16 Terrain Scan Range 16 Terrain Scan Density 10 Armor Coverage 150 Propulsion Shielding 33 Evasion (%) 40 Recoil Reduction 2 Item Schematics ----------------- Cargo Storage Unit | -10/Materials | Hacked Robot Schematics ------------------ M-13 Machinist | -10/Materials | Hacked Fabricated ------------ Nothing Alien Tech Used ----------------- None Achievements -------------- None Challenges ------------ None Game ------ Seed ReflectiveHeartHammer Manual? 0 Play Time 00:21:41 Cumulative 508.8 hours Start 2024.09.23 @ 18:42:36 End 2024.09.24 @ 17:25:02 Sessions 2 Manual Loads 0 Difficulty Rogue Special Mode None Game No. 234 Rogue 234 Adventurer 0 Explorer 0 Win Type - Total 12 Types 9/0/1/1/0/0/0/1/0 Lore% 72 Gallery% 89 Achievement% 72 Wizard Run 0 Options --------- Layout 2 ASCII 1 Keyboard 1 Movement Vi Keybinds 0 Fullscreen 2 Font 18/SmallcapsGlow Map View 50x49 Zoom Use 0% Tactical HUD 1 Map Filters NONE Filters NONE Steam 0 RUN: 99f3e87b-cd36-480c-8129-b0258c640622